bitfinex/quotes_SOLUSD_20240718
["timestamp","ask_amount","ask_price","bid_price","bid_amount"]
[1721343000648,14.96,160.04,160.03,15.6217]
[1721343001241,14.96,160.04,160.02,0.8142836]
[1721343001434,14.96,160.03,160.02,0.8142836]
[1721343001636,14.96,160.03,160.02,7.0634836]
[1721343001845,14.96,160.04,160.03,6.2488]
[1721343002422,14.96,160.04,160.02,22.6862836]
[1721343002629,14.96,160.03,160.02,22.6862836]
[1721343002851,14.96,160.03,160.02,16.4370836]
[1721343004129,14.96,160.03,160.02,22.6862836]
[1721343004731,16.2542,160.05,160.02,16.4370836]
[1721343004943,14.96,160.04,160.02,16.4370836]
[1721343005131,14.96,160.04,160.03,6.2485]
[1721343006961,14.96,160.04,160.02,22.6862836]
[1721343007252,16.2542,160.05,160.02,22.6862836]
[1721343007253,14.96,160.03,160.02,22.6862836]
[1721343008128,14.96,160.03,160.02,16.4370836]
[1721343008729,14.96,160.03,160.02,22.6862836]
[1721343009145,14.96,160.04,160.03,6.2486]
[1721343010426,31.2142,160.05,160.04,6.2484]
[1721343010627,14.96,160.05,160.04,6.2484]
[1721343010925,15.9924,160.08,160.06,21.8665]
[1721343011128,14.96,160.07,160.06,21.8665]
[1721343011642,14.96,160.07,160.06,15.6189]
[1721343012037,14.96,160.07,160.06,21.8665]
[1721343012848,14.96,160.07,160.06,15.6189]
[1721343013042,14.96,160.07,160.05,6.2479]
[1721343013234,14.96,160.06,160.04,6.2483]
[1721343013533,14.96,160.05,160.04,6.2483]
[1721343014259,15.9924,160.08,160.05,6.2479]
[1721343014438,14.96,160.06,160.05,6.2479]
[1721343017847,15.9924,160.08,160.05,6.2479]
[1721343018356,14.96,160.06,160.05,6.2479]
[1721343019762,15.9924,160.08,160.06,6.2474]
[1721343019938,14.96,160.07,160.06,6.2474]
[1721343020939,22.2067,160.12,160.07,15.6177]
[1721343021140,14.96,160.08,160.07,21.8648]
[1721343022244,14.96,160.08,160.06,6.2476]
[1721343024061,14.96,160.08,160.05,6.2479]
[1721343024269,14.96,160.07,160.05,6.2479]
[1721343025448,6.2466,160.09,160.05,6.2479]
[1721343025647,14.96,160.08,160.05,6.2479]
[1721343027266,20.0,160.11,160.06,15.6186]
[1721343027466,14.96,160.1,160.07,6.2469]
[1721343031268,14.96,160.1,160.08,6.2468]
[1721343031772,14.96,160.1,160.07,6.2471]
[1721343032888,6.2445,160.14,160.1,6.2458]
[1721343033197,21.2045,160.14,160.1,6.2458]
[1721343033551,14.96,160.14,160.11,1.24915051]
[1721343033771,16.2317,160.16,160.12,6.245]
[1721343033953,14.96,160.15,160.12,6.245]
[1721343034454,14.96,160.14,160.12,6.245]
[1721343034667,14.96,160.14,160.13,6.2449]
[1721343035259,14.96,160.15,160.13,6.2449]
[1721343036075,14.96,160.14,160.11,21.8588]
[1721343036268,14.96,160.13,160.11,21.8588]
[1721343037057,14.96,160.13,160.12,6.2453]
[1721343037668,14.96,160.13,160.11,21.8589]
[1721343038072,14.96,160.14,160.13,6.2449]
[1721343039578,6.2428,160.19,160.13,15.6117]
[1721343039887,14.96,160.17,160.13,15.6117]
[1721343040178,14.96,160.16,160.14,6.2444]
[1721343042159,15.0305,160.2,160.15,6.2441]
[1721343042363,14.96,160.19,160.17,6.2432]
[1721343042963,14.96,160.19,160.17,21.8509]
[1721343044005,14.96,160.19,160.14,15.6108]
[1721343044208,14.96,160.17,160.14,15.6108]
[1721343044489,6.243,160.18,160.14,21.8553]
[1721343044490,14.96,160.15,160.14,21.8553]
[1721343044990,14.96,160.16,160.15,6.2441]
[1721343045369,14.96,160.16,160.14,21.8552]
[1721343045577,6.2427,160.19,160.14,21.8552]
[1721343045578,14.96,160.15,160.14,21.8552]
[1721343048070,14.96,160.15,160.14,15.6108]
[1721343048485,14.96,160.15,160.14,21.8553]
[1721343049394,14.96,160.16,160.15,6.2441]
[1721343049780,14.96,160.17,160.15,6.2441]
[1721343050876,14.96,160.16,160.15,6.2441]
[1721343059706,14.96,160.16,160.14,15.6108]
[1721343059895,14.96,160.15,160.14,21.8553]
[1721343060301,14.96,160.15,160.11,15.6135]
[1721343060608,14.96,160.12,160.11,15.6135]
[1721343060908,14.96,160.12,160.09,6.2461]
[1721343061104,6.2452,160.13,160.09,6.2461]
[1721343061303,14.96,160.1,160.09,6.2461]
[1721343062405,14.96,160.1,160.08,21.8637]
[1721343062626,14.96,160.09,160.08,21.8637]
[1721343069517,14.96,160.09,160.08,15.617]
[1721343069719,14.96,160.09,160.07,6.2471]
[1721343069919,14.96,160.08,160.07,6.2471]
[1721343074219,29.92,160.08,160.02,22.6860836]
[1721343074420,14.96,160.03,160.02,16.4370836]
[1721343075421,14.96,160.03,160.02,22.6862836]
[1721343076202,6.2477,160.06,160.02,22.6862836]
[1721343076203,26.2473,160.07,160.03,6.2487]
[1721343076521,14.96,160.04,160.02,22.6860836]
[1721343076715,14.96,160.03,160.02,22.6860836]
[1721343078033,14.96,160.03,160.02,16.4370836]
[1721343078329,14.96,160.03,160.02,0.8142836]
[1721343079727,14.96,160.03,160.02,7.0634836]
[1721343079935,14.96,160.03,160.02,0.8142836]
[1721343081341,14.96,160.03,160.02,7.0634836]
[1721343082642,14.96,160.03,160.02,0.8142836]
[1721343086315,41.2088,160.03,160.02,0.8142836]
[1721343090411,6.2502,160.0,159.96,6.2514]
[1721343090629,6.2502,160.0,159.95,15.6291]
[1721343090630,14.96,159.97,159.95,21.8809]
[1721343090934,14.96,159.96,159.95,21.8809]
[1721343091332,14.96,159.96,159.95,15.6291]
[1721343091536,14.96,159.96,159.92,15.6321]
[1721343091725,14.96,159.93,159.91,6.2531]
[1721343092234,14.96,159.94,159.91,6.2531]
[1721343092427,14.96,159.93,159.91,6.2531]
[1721343095441,14.96,159.92,159.91,6.2531]
[1721343096721,14.96,159.92,159.9,6.2538]
[1721343097753,14.96,159.92,159.89,15.6349]
[1721343097754,14.96,159.92,159.91,6.2535]
[1721343098126,14.96,159.93,159.91,6.2535]
[1721343100423,14.96,159.92,159.91,6.2535]
[1721343101739,14.96,159.93,159.92,6.2528]
[1721343102236,14.96,159.93,159.91,21.8863]
[1721343106340,14.96,159.93,159.91,15.633]
[1721343106742,14.96,159.92,159.89,6.2542]
[1721343107044,14.96,159.91,159.89,6.2542]
[1721343107366,14.96,159.91,159.9,6.2539]
[1721343107545,14.96,159.91,159.86,0.8142836]
[1721343107754,14.96,159.89,159.86,0.8142836]
[1721343108346,14.96,159.88,159.84,31.2805]
[1721343109169,14.96,159.89,159.84,31.2805]
[1721343109572,14.96,159.87,159.8,31.289]
[1721343109771,14.96,159.86,159.81,16.21117347]
[1721343109958,14.96,159.86,159.82,15.642]
[1721343110161,14.96,159.86,159.83,6.2565]
[1721343110471,14.96,159.87,159.83,6.2565]
[1721343110664,14.96,159.87,159.84,16.8914732]
[1721343110883,14.96,159.88,159.84,16.8914732]
[1721343111464,14.96,159.88,159.85,6.2556]
[1721343112047,6.254,159.9,159.86,6.2554]
[1721343112249,6.0567,159.92,159.86,15.6382]
[1721343112444,15.1668,159.93,159.88,15.6363]
[1721343112649,14.96,159.92,159.9,6.2538]
[1721343112876,14.96,159.92,159.89,6.2542]
[1721343113054,14.96,159.91,159.89,6.2542]
[1721343113385,14.96,159.92,159.89,6.2542]
[1721343113574,14.96,159.91,159.88,15.6363]
[1721343113754,14.96,159.9,159.88,15.6363]
[1721343115684,14.96,159.9,159.87,6.255]
[1721343116483,14.96,159.89,159.86,6.2554]
[1721343117079,14.96,159.89,159.87,6.255]
[1721343117284,14.96,159.9,159.88,6.2546]
[1721343117785,14.96,159.91,159.88,6.2546]
[1721343119848,14.96,159.9,159.88,6.2546]
[1721343120296,14.96,159.89,159.87,15.6374]
[1721343120501,14.96,159.88,159.85,6.2555]
[1721343120885,14.96,159.87,159.85,6.2555]
[1721343122071,21.2152,159.87,159.83,6.2563]
[1721343122281,14.96,159.85,159.83,6.2563]
[1721343124704,14.96,159.85,159.83,15.641]
[1721343124913,14.96,159.84,159.83,15.641]
[1721343125216,21.2164,159.84,159.79,21.9026]
[1721343125380,14.96,159.82,159.79,21.9026]
[1721343125583,6.2564,159.84,159.8,6.2577]
[1721343125902,14.96,159.82,159.8,6.2577]
[1721343126101,14.96,159.83,159.8,6.2577]
[1721343126487,14.96,159.82,159.8,6.2577]
[1721343126867,14.96,159.81,159.79,15.6445]
[1721343127072,14.96,159.81,159.71,6.495]
[1721343127073,14.96,159.8,159.76,21.9075]
[1721343127378,14.96,159.78,159.76,21.9075]
[1721343127586,14.96,159.78,159.77,6.2589]
[1721343128614,14.96,159.79,159.77,6.2589]
[1721343128803,14.96,159.79,159.78,6.2586]
[1721343128982,14.96,159.79,159.77,6.2589]
[1721343129179,14.96,159.78,159.77,6.2589]
[1721343131807,16.2118,159.83,159.76,15.6483]
[1721343131808,14.96,159.79,159.78,6.2584]
[1721343132788,16.2118,159.83,159.78,15.646]
[1721343133118,20.9867,159.84,159.79,16.21158639]
[1721343133314,14.96,159.84,159.79,16.21158639]
[1721343133487,16.3691,159.87,159.83,6.2566]
[1721343133688,14.96,159.84,159.83,6.2566]
[1721343134793,14.96,159.84,159.82,21.8991]
[1721343136804,14.96,159.84,159.82,15.6422]
[1721343137506,14.96,159.84,159.82,21.8991]
[1721343138213,14.96,159.84,159.83,6.2566]
[1721343138910,14.96,159.84,159.82,21.8991]
[1721343139135,14.96,159.84,159.83,6.2566]
[1721343139638,14.96,159.84,159.82,21.8992]
[1721343139927,14.96,159.86,159.84,15.6401]
[1721343140121,31.3291,159.87,159.84,15.6401]
[1721343140431,31.3291,159.87,159.85,6.2555]
[1721343140730,14.96,159.87,159.85,6.2555]
[1721343141637,14.96,159.91,159.87,15.6367]
[1721343142628,14.96,159.91,159.88,6.2545]
[1721343142925,14.96,159.9,159.88,6.2545]
[1721343143932,14.96,159.9,159.89,6.2542]
[1721343145138,14.96,159.9,159.87,21.8914]
[1721343145312,14.96,159.89,159.88,6.2546]
[1721343146609,14.96,159.89,159.87,21.8916]
[1721343146814,14.96,159.88,159.87,21.8916]
[1721343147431,16.2378,159.9,159.88,6.2544]
[1721343149225,14.96,159.89,159.88,6.2544]
[1721343150739,14.96,159.89,159.87,6.2549]
[1721343151441,14.96,159.88,159.83,15.6409]
[1721343151616,14.96,159.87,159.85,6.2555]
[1721343151818,14.96,159.88,159.86,6.2554]
[1721343152017,14.96,159.87,159.85,15.6392]
[1721343152420,14.96,159.87,159.85,21.8947]
[1721343153136,14.96,159.86,159.85,21.8947]
[1721343154620,14.96,159.86,159.84,6.2561]
[1721343155326,6.2547,159.88,159.84,6.2561]
[1721343155327,14.96,159.85,159.84,6.2561]
[1721343156036,14.96,159.85,159.83,6.2565]
[1721343156541,14.96,159.84,159.82,21.8988]
[1721343157525,14.96,159.85,159.82,15.6419]
[1721343157917,16.2378,159.9,159.81,1.25128266]
[1721343157918,14.96,159.86,159.84,15.6404]
[1721343158114,16.2378,159.9,159.86,15.6382]
[1721343158321,14.96,159.88,159.87,6.2549]
[1721343159417,14.96,159.88,159.86,21.8935]
[1721343160122,14.96,159.88,159.87,6.255]
[1721343160725,14.96,159.89,159.87,6.255]
[1721343161452,14.96,159.88,159.87,6.255]
[1721343161835,14.96,159.89,159.87,6.255]
[1721343162947,14.96,159.88,159.87,6.255]
[1721343163115,14.96,159.88,159.83,15.6408]
[1721343163313,14.96,159.84,159.83,21.8973]
[1721343164330,14.96,159.85,159.83,21.8973]
[1721343164629,14.96,159.84,159.83,21.8973]
[1721343166048,6.2543,159.89,159.83,15.6408]
[1721343166262,14.96,159.87,159.85,6.2556]
[1721343166547,16.2378,159.9,159.87,6.255]
[1721343166746,14.96,159.88,159.87,6.255]
[1721343167147,14.96,159.88,159.86,6.2554]
[1721343167451,14.96,159.88,159.87,6.255]
[1721343168246,14.96,159.89,159.87,6.255]
[1721343168446,14.96,159.89,159.85,15.6392]
[1721343168447,14.96,159.88,159.86,6.2553]
[1721343171353,14.96,159.87,159.85,21.8949]
[1721343172350,14.96,159.88,159.85,21.8949]
[1721343172552,14.96,159.87,159.85,21.8949]
[1721343172742,14.96,159.88,159.85,21.8949]
[1721343173853,14.96,159.87,159.85,21.8949]
[1721343174051,14.96,159.87,159.85,15.6392]
[1721343174363,14.96,159.86,159.85,21.895]
[1721343175748,14.96,159.87,159.86,6.2554]
[1721343176349,14.96,159.88,159.86,6.2554]
[1721343176657,14.96,159.87,159.86,6.2554]
[1721343177242,14.96,159.88,159.86,6.2554]
[1721343177453,14.96,159.88,159.87,6.255]
[1721343178342,14.96,159.88,159.86,6.2553]
[1721343179450,14.96,159.89,159.86,6.2553]
[1721343179863,14.96,159.88,159.86,6.2553]
[1721343180558,16.2378,159.9,159.87,15.6374]
[1721343180753,14.96,159.89,159.88,6.2546]
[1721343181644,14.96,159.89,159.87,21.8923]
[1721343181866,16.2378,159.9,159.87,21.8923]
[1721343182067,14.96,159.89,159.87,21.8923]
[1721343182769,14.96,159.89,159.87,15.6374]
[1721343183279,6.2893,159.91,159.87,15.6374]
[1721343183454,14.96,159.91,159.87,16.88837206]
[1721343183651,14.96,159.91,159.89,6.2542]
[1721343183947,14.96,159.92,159.89,6.2542]
[1721343184151,21.2132,159.92,159.88,6.2546]
[1721343184463,14.96,159.92,159.88,6.2546]
[1721343184859,21.2131,159.92,159.87,30.5974]
[1721343185177,21.2131,159.92,159.87,15.6374]
[1721343185551,14.96,159.91,159.88,6.2543]
[1721343188454,14.96,159.91,159.88,7.50508881]
[1721343188655,14.96,159.91,159.88,6.2543]
[1721343188974,14.96,159.92,159.89,6.2542]
[1721343189161,16.654,159.94,159.91,6.2534]
[1721343189363,14.96,159.93,159.91,6.2534]
[1721343190165,14.96,159.93,159.9,6.2537]
[1721343190663,31.614,159.94,159.9,6.2537]
[1721343190863,37.8664,159.94,159.9,6.2538]
[1721343191057,14.96,159.93,159.9,6.2538]
[1721343193076,14.96,159.92,159.89,21.8892]
[1721343193875,14.96,159.92,159.9,6.2538]
[1721343195975,14.96,159.92,159.91,6.2535]
[1721343198356,16.654,159.94,159.93,6.2527]
[1721343198554,31.614,159.94,159.93,6.2527]
[1721343199973,14.96,159.94,159.93,6.2527]
[1721343202062,6.2805,159.95,159.93,6.2527]
[1721343202262,14.96,159.95,159.94,6.2523]
[1721343202587,15.0358,159.98,159.95,6.2518]
[1721343202771,15.0358,159.98,159.94,15.6305]
[1721343202772,20.0,159.97,159.96,6.2515]
[1721343202957,14.96,159.97,159.94,15.6305]
[1721343203380,15.0358,159.98,159.95,6.2518]
[1721343203569,14.96,159.97,159.96,6.2515]
[1721343203875,14.96,159.97,159.95,6.2518]
[1721343204184,14.96,159.96,159.95,6.2518]
[1721343205087,14.96,159.96,159.94,15.6305]
[1721343205390,15.0358,159.98,159.94,15.6305]
[1721343205552,14.96,159.96,159.94,15.6305]
[1721343205752,15.0358,159.98,159.94,15.6305]
[1721343205753,14.96,159.95,159.94,15.6305]
[1721343209580,14.96,159.95,159.94,21.8828]
[1721343209886,14.96,159.96,159.94,15.6305]
[1721343210057,14.96,159.96,159.94,21.8827]
[1721343211187,15.0358,159.98,159.95,6.2518]
[1721343211383,14.96,159.97,159.95,6.2518]
[1721343212357,14.96,159.96,159.94,21.8828]
[1721343212557,14.96,159.95,159.93,6.2524]
[1721343212889,14.96,159.94,159.92,6.2528]
[1721343213283,14.96,159.93,159.91,15.6329]
[1721343213592,14.96,159.92,159.91,15.6329]
[1721343214263,14.96,159.92,159.9,6.2535]
[1721343214669,14.96,159.92,159.91,6.2535]
[1721343215289,14.96,159.92,159.9,6.2538]
[1721343216461,14.96,159.91,159.9,6.2538]
[1721343216661,14.96,159.92,159.9,6.2538]
[1721343217888,14.96,159.92,159.91,6.2535]
[1721343218090,14.96,159.92,159.88,15.636]
[1721343218300,14.96,159.92,159.9,6.2538]
[1721343218464,14.96,159.92,159.91,6.2535]
[1721343218863,14.96,159.93,159.92,6.2529]
[1721343219088,21.2866,159.98,159.94,6.2521]
[1721343219269,14.96,159.95,159.94,6.2521]
[1721343219600,15.0358,159.98,159.95,15.6294]
[1721343219760,29.9958,159.98,159.95,15.6294]
[1721343220764,6.1694,159.99,159.95,15.6294]
[1721343220765,21.1294,159.99,159.95,15.6294]
[1721343220968,21.1294,159.99,159.97,6.2509]
[1721343221280,14.96,159.99,159.97,6.2509]
[1721343221594,14.96,159.98,159.96,6.2514]
[1721343221759,14.96,159.98,159.95,15.6294]
[1721343222891,14.96,159.97,159.96,6.2515]
[1721343223693,16.1175,160.02,159.97,6.2511]
[1721343223694,14.96,159.98,159.97,6.2511]
[1721343226163,14.96,159.98,159.96,6.2514]
[1721343226991,14.96,159.97,159.96,6.2514]
[1721343227394,14.96,159.97,159.95,21.8812]
[1721343227578,14.96,159.96,159.95,21.8812]
[1721343228822,14.96,159.97,159.96,6.2514]
[1721343232196,14.96,159.97,159.95,21.8812]
[1721343232495,14.96,159.96,159.95,21.8812]
[1721343234404,6.2501,160.0,159.96,6.2515]
[1721343234690,14.96,159.97,159.96,6.2515]
[1721343235898,6.2501,160.0,159.96,6.2515]
[1721343236099,14.96,159.97,159.96,6.2515]
[1721343237500,14.96,159.97,159.95,15.6294]
[1721343238202,14.96,159.96,159.95,21.8813]
[1721343238885,14.96,159.96,159.95,15.6294]
[1721343239878,14.96,159.96,159.95,21.8813]
[1721343242201,14.96,159.96,159.95,15.6294]
[1721343242373,14.96,159.96,159.93,6.2523]
[1721343242572,14.96,159.94,159.93,6.2523]
[1721343244093,14.96,159.95,159.94,6.2519]
[1721343245102,14.96,159.95,159.92,15.6321]
[1721343245409,14.96,159.94,159.92,15.6321]
[1721343245585,14.96,159.94,159.93,6.2527]
[1721343247000,14.96,159.94,159.92,21.885]
[1721343247186,14.96,159.94,159.93,6.2527]
[1721343248798,14.96,159.95,159.93,6.2527]
[1721343250683,14.96,159.95,159.94,6.2523]
[1721343250885,15.7232,160.01,159.93,16.21042751]
[1721343251095,15.7232,160.01,159.94,14.96]
[1721343251293,14.96,159.99,159.96,15.6284]
[1721343251491,15.7232,160.01,159.98,15.6262]
[1721343251696,30.6832,160.01,159.99,6.25]
[1721343252397,30.6832,160.01,159.98,21.8768]
[1721343252912,15.7232,160.01,159.98,21.8768]
[1721343253093,14.96,160.0,159.98,21.8768]
[1721343253895,30.6832,160.01,159.98,21.8768]
[1721343254616,15.7232,160.01,159.98,21.8768]
[1721343254794,30.6832,160.01,159.98,21.8768]
[1721343255391,14.96,160.0,159.98,21.8768]
[1721343256107,21.9729,160.01,159.97,6.251]
[1721343256401,21.9729,160.01,159.95,15.6291]
[1721343256402,14.96,159.99,159.96,6.2514]
[1721343256611,14.96,159.99,159.96,7.50148625]
[1721343257026,14.96,159.98,159.96,6.2514]
[1721343257514,14.96,159.99,159.96,6.2514]
[1721343257716,14.96,159.99,159.97,6.2511]
[1721343257914,14.96,159.98,159.97,6.2511]
[1721343259210,14.96,159.98,159.96,6.2514]
[1721343261326,14.96,159.98,159.97,6.2511]
[1721343261708,14.96,159.98,159.96,6.2514]
[1721343262415,14.96,159.98,159.97,6.2511]
[1721343263230,14.96,159.98,159.96,6.2514]
[1721343264717,14.96,159.98,159.97,6.2511]
[1721343265305,14.96,159.99,159.97,6.2511]
[1721343267023,14.96,159.99,159.98,6.2507]
[1721343268526,14.96,159.99,159.97,21.8788]
[1721343269239,14.96,159.99,159.97,15.6277]
[1721343269410,14.96,159.99,159.97,21.8788]
[1721343270731,21.9729,160.01,159.97,21.8788]
[1721343270732,14.96,159.98,159.97,21.8788]
[1721343270931,14.96,159.98,159.97,15.6277]
[1721343278031,14.96,159.98,159.95,6.2517]
[1721343280038,14.96,159.97,159.95,6.2517]
[1721343280812,14.96,159.96,159.95,6.2517]
[1721343282337,14.96,159.97,159.96,6.2514]
[1721343283009,6.2501,160.0,159.96,6.2514]
[1721343283213,14.96,159.97,159.96,6.2514]
[1721343284847,14.96,159.98,159.97,6.251]
[1721343287746,14.96,159.98,159.96,21.8799]
[1721343287924,14.96,159.97,159.96,21.8799]
[1721343288921,14.96,159.97,159.96,15.6285]
[1721343289437,14.96,159.97,159.96,21.88]
[1721343289646,14.96,159.97,159.96,15.6285]
[1721343290447,14.96,159.98,159.96,15.6285]
[1721343290821,14.96,159.97,159.96,21.88]
[1721343291540,14.96,159.97,159.96,15.6285]
[1721343292423,14.96,159.97,159.96,21.88]
[1721343292729,14.96,159.97,159.96,15.6285]
[1721343293148,14.96,159.97,159.95,6.2516]
[1721343293337,14.96,160.0,159.95,6.2516]
[1721343293338,14.96,159.96,159.95,6.2516]
[1721343293534,14.96,159.96,159.93,15.631]
[1721343293725,14.96,159.94,159.93,21.8836]
[1721343294729,15.7232,160.01,159.93,15.631]
[1721343294944,14.96,159.96,159.95,6.2517]
[1721343295346,14.96,159.96,159.94,6.2522]
[1721343295534,14.96,159.95,159.92,6.253]
[1721343295724,14.96,159.93,159.92,6.253]
[1721343298133,14.96,159.93,159.9,15.634]
[1721343298134,14.96,159.93,159.91,6.2534]
[1721343298338,14.96,159.92,159.91,6.2534]
[1721343300549,9.96,159.92,159.91,6.2534]
[1721343302031,15.2691,159.94,159.9,15.634]
[1721343302332,14.96,159.94,159.92,6.2529]
[1721343302745,14.96,159.94,159.93,6.2527]
[1721343302932,6.2513,159.97,159.93,6.2527]
[1721343303131,14.96,159.94,159.93,6.2527]
[1721343303329,29.0222,159.98,159.94,6.2521]
[1721343303527,20.0,159.97,159.94,15.6303]
[1721343303746,14.96,159.95,159.94,21.8825]
[1721343304251,14.96,159.96,159.95,6.2519]
[1721343304554,14.96,159.97,159.95,6.2519]
[1721343305235,14.96,159.99,159.96,15.6286]
[1721343305448,14.96,159.99,159.97,6.2511]
[1721343305946,14.96,159.99,159.96,21.88]
[1721343306935,14.96,159.98,159.96,21.88]
[1721343308752,14.96,159.97,159.96,21.88]
[1721343309759,14.96,159.98,159.96,21.88]
[1721343317661,14.96,159.97,159.96,21.88]
[1721343320458,14.96,159.97,159.94,6.252]
[1721343320772,14.96,159.95,159.93,21.8837]
[1721343320941,14.96,159.94,159.93,21.8837]
[1721343323060,6.2508,159.98,159.94,6.2523]
[1721343323366,14.96,159.95,159.94,6.2523]
[1721343323964,14.96,159.95,159.93,21.8837]
[1721343324159,14.96,159.94,159.93,21.8837]
[1721343326852,15.6242,160.01,159.93,21.8837]
[1721343326853,6.2505,159.99,159.95,6.2515]
[1721343327165,34.96,159.98,159.95,15.6297]
[1721343327662,23.0935,160.02,159.98,15.6266]
[1721343327963,14.96,160.01,159.98,15.6266]
[1721343328371,14.96,160.01,160.0,6.25]
[1721343328542,14.96,160.01,159.99,6.2502]
[1721343328746,14.96,160.0,159.99,6.2502]
[1721343328943,16.6604,160.02,160.01,15.624]
[1721343329166,14.96,160.02,160.01,15.624]
[1721343329384,21.4185,160.06,160.01,15.624]
[1721343329577,14.96,160.04,160.02,6.2491]
[1721343330595,14.96,160.03,160.01,21.8734]
[1721343330765,14.96,160.04,160.02,6.2492]
[1721343331661,14.96,160.04,160.03,6.2488]
[1721343332582,14.96,160.04,160.02,6.249]
[1721343333086,14.96,160.03,160.01,21.8734]
[1721343335794,14.96,160.04,160.02,6.2492]
[1721343336093,21.5569,160.06,160.03,6.2485]
[1721343336094,15.3092,160.06,160.03,6.2485]
[1721343336265,14.96,160.07,160.04,6.248]
[1721343337592,14.96,160.06,160.04,6.248]
[1721343338380,14.96,160.05,160.03,21.8698]
[1721343339180,14.96,160.05,160.02,6.2491]
[1721343339374,14.96,160.03,160.01,6.2495]
[1721343340295,14.96,160.02,160.0,21.8742]
[1721343340497,14.96,160.01,160.0,21.8742]
[1721343340990,14.96,160.01,159.98,6.2504]
[1721343341204,6.2489,160.03,159.99,6.2502]
[1721343341573,14.96,160.0,159.99,6.2502]
[1721343344069,14.96,160.02,160.01,6.2496]
[1721343345101,15.1195,160.04,160.01,6.2496]
[1721343345306,14.96,160.03,160.01,6.2496]
[1721343346001,14.96,160.05,160.02,15.6225]
[1721343346213,14.96,160.04,160.02,15.6225]
[1721343347001,14.96,160.04,160.02,21.8716]
[1721343347806,6.2476,160.06,160.02,21.8716]
[1721343347988,14.96,160.04,160.02,21.8716]
[1721343348301,14.96,160.04,160.0,6.2498]
[1721343348302,14.96,160.03,160.0,6.2498]
[1721343348887,14.96,160.03,160.01,6.2495]
[1721343349303,14.96,160.02,159.99,21.8755]
[1721343349502,14.96,160.01,159.99,15.6253]
[1721343350407,14.96,160.0,159.99,15.6253]
[1721343351188,14.96,160.0,159.99,21.8755]
[1721343351382,14.96,160.0,159.99,15.6253]
[1721343352190,14.96,160.0,159.99,21.8756]
[1721343353414,14.96,160.0,159.98,6.2507]
[1721343353709,14.96,159.99,159.98,6.2507]
[1721343362515,14.96,159.99,159.97,6.251]
[1721343362718,14.96,159.98,159.96,21.8798]
[1721343362901,14.96,159.97,159.96,21.8798]
[1721343363234,14.96,159.97,159.93,31.2633]
[1721343363235,14.96,159.97,159.95,6.2519]
[1721343363438,14.96,159.96,159.95,6.2519]